bitfinex-derivatives/quotes_BTCF0:USTF0_20250504
["timestamp","ask_amount","ask_price","bid_price","bid_amount"]
[1746348286461,0.1472,95651.0,95645.0,0.2090752]
[1746348286665,0.2090716,95647.0,95645.0,0.3590752]
[1746348286857,0.2540628,95649.0,95645.0,0.3590752]
[1746348287053,0.0449951,95649.0,95645.0,0.3590752]
[1746348287554,0.0449951,95649.0,95645.0,0.5176752]
[1746348287747,0.002,95646.0,95645.0,0.5186752]
[1746348287951,0.004,95646.0,95645.0,0.5196752]
[1746348288352,0.004,95646.0,95645.0,0.6696752]
[1746348290058,0.213073,95646.0,95645.0,0.6696752]
[1746348290264,0.004,95646.0,95645.0,0.5110752]
[1746348290464,0.213073,95646.0,95645.0,0.3610752]
[1746348291364,0.233073,95646.0,95645.0,0.3610752]
[1746348291658,0.233073,95646.0,95645.0,0.5215752]
[1746348292561,0.233073,95646.0,95645.0,0.002]
[1746348293067,0.413073,95646.0,95645.0,0.002]
[1746348296758,0.479593,95646.0,95645.0,0.002]
[1746348298171,0.479593,95646.0,95645.0,0.2110752]
[1746348298970,0.632693,95646.0,95645.0,0.2110752]
[1746348299474,0.632693,95646.0,95645.0,0.002]
[1746348302073,0.672693,95646.0,95645.0,0.002]
[1746348302272,0.762693,95646.0,95645.0,0.002]
[1746348302569,0.714893,95646.0,95645.0,0.002]
[1746348302775,0.662693,95646.0,95645.0,0.002]
[1746348302976,0.714893,95646.0,95645.0,0.002]
[1746348303276,0.209097,95635.0,95634.0,0.3608]
[1746348303476,0.329097,95635.0,95634.0,0.3708]
[1746348304568,0.329097,95635.0,95634.0,0.3718]
[1746348305071,0.329097,95635.0,95634.0,0.3738]
[1746348305367,0.330097,95635.0,95634.0,0.3738]
[1746348307476,0.350097,95635.0,95634.0,0.3738]
[1746348307671,0.350097,95635.0,95634.0,0.3638]
[1746348307870,0.470097,95635.0,95634.0,0.3638]
[1746348308770,0.400297,95635.0,95634.0,0.3638]
[1746348313378,0.370097,95635.0,95634.0,0.3638]
[1746348314978,0.400297,95635.0,95634.0,0.003]
[1746348315179,0.380297,95635.0,95634.0,0.003]
[1746348316679,0.350097,95635.0,95634.0,0.003]
[1746348317467,0.330097,95635.0,95634.0,0.003]
[1746348322377,0.396537,95635.0,95634.0,0.003]
[1746348335291,0.209108,95630.0,95629.0,0.12836233]
[1746348335484,0.269108,95630.0,95629.0,0.13836233]
[1746348336591,0.270108,95630.0,95629.0,0.14236233]
[1746348336896,0.271108,95630.0,95629.0,0.14236233]
[1746348338590,0.271108,95630.0,95629.0,0.30536233]
[1746348342590,0.271108,95630.0,95629.0,0.14236233]
[1746348342799,0.2091233,95623.0,95622.0,0.00156867]
[1746348342995,0.4191233,95623.0,95622.0,0.15156867]
[1746348343695,0.5717233,95623.0,95622.0,0.15156867]
[1746348344093,0.5727233,95623.0,95622.0,0.15256867]
[1746348344295,0.5737233,95623.0,95622.0,0.15556867]
[1746348347391,0.2091386,95616.0,95615.0,0.1614]
[1746348347590,0.3791386,95616.0,95615.0,0.1781099]
[1746348347994,0.9040386,95616.0,95615.0,0.13]
[1746348348210,1.0514386,95616.0,95615.0,0.13]
[1746348349105,1.0534386,95616.0,95615.0,0.131]
[1746348351905,1.0534386,95616.0,95615.0,0.001]
[1746348360097,1.0634386,95616.0,95615.0,0.001]
[1746348360706,0.2091714,95601.0,95600.0,0.1]
[1746348361009,0.3491714,95601.0,95600.0,0.26]
[1746348361405,0.6647714,95601.0,95600.0,0.26]
[1746348362207,0.6657714,95601.0,95600.0,0.26]
[1746348362408,0.69883922,95601.0,95600.0,0.26]
[1746348362808,0.70883922,95601.0,95600.0,0.26]
[1746348371214,0.44966782,95601.0,95576.0,0.21248089]
[1746348371416,0.3608,95577.0,95576.0,0.21248089]
[1746348371620,0.9464239,95577.0,95576.0,0.21248089]
[1746348372124,0.9664239,95577.0,95576.0,0.21248089]
[1746348372330,0.8966239,95577.0,95576.0,0.21248089]
[1746348372515,0.9664239,95577.0,95576.0,0.21248089]
[1746348372710,0.9674239,95577.0,95576.0,0.21248089]
[1746348373023,0.9674239,95577.0,95568.0,0.4664]
[1746348373024,0.2092414,95569.0,95568.0,0.4664]
[1746348373214,0.7400414,95569.0,95568.0,0.6264]
[1746348373811,0.7400414,95569.0,95568.0,0.4664]
[1746348374922,0.7420414,95569.0,95568.0,0.4664]
[1746348375120,0.7420414,95569.0,95568.0,0.3042]
[1746348375421,0.7440414,95569.0,95568.0,0.1571]
[1746348376013,0.9065414,95569.0,95568.0,0.1571]
[1746348377125,0.9729414,95569.0,95568.0,0.1571]
[1746348379027,0.97273246,95569.0,95568.0,0.1571]
[1746348382141,0.9729414,95569.0,95568.0,0.2771]
[1746348382543,0.9729414,95569.0,95568.0,0.3142]
[1746348382733,0.9729414,95569.0,95568.0,0.4342]
[1746348385050,0.9065414,95569.0,95568.0,0.4342]
[1746348385342,0.174,95569.0,95568.0,0.6434436]
[1746348385936,0.3832414,95569.0,95568.0,0.6434436]
[1746348387137,0.7440414,95569.0,95568.0,0.6434436]
[1746348391547,0.5348,95569.0,95568.0,0.6434436]
[1746348393351,0.7440414,95569.0,95568.0,0.6434436]
[1746348393551,0.5348,95569.0,95568.0,0.6434436]
[1746348394252,0.6919,95569.0,95568.0,0.6434436]
[1746348397149,0.5219,95569.0,95568.0,0.7134436]
[1746348397345,0.5219,95569.0,95568.0,0.6434436]
[1746348398745,0.5219,95569.0,95568.0,0.69143739]
[1746348401052,0.06708,95575.0,95574.0,0.2092305]
[1746348401250,0.10708,95575.0,95574.0,0.3592305]
[1746348402056,0.10708,95575.0,95574.0,0.5219305]
[1746348402352,0.1588,95576.0,95575.0,0.2092283]
[1746348402654,0.1588,95576.0,95575.0,1.07205405]
[1746348402655,0.1688,95576.0,95575.0,1.07205405]
[1746348404061,0.1728,95576.0,95575.0,1.07405405]
[1746348404354,0.1728,95576.0,95575.0,1.17868205]
[1746348404549,0.1628,95576.0,95575.0,1.17868205]
[1746348406052,0.004,95576.0,95575.0,1.19868205]
[1746348409660,0.004,95576.0,95575.0,1.26021932]
[1746348412564,0.1616,95583.0,95582.0,0.209213]
[1746348412766,0.1616,95583.0,95582.0,0.523833]
[1746348413059,0.3087,95598.0,95597.0,0.2091802]
[1746348413060,0.1597,95598.0,95597.0,0.2091802]
[1746348413253,0.2091768,95599.0,95598.0,0.2614677]
[1746348413556,0.15,95599.0,95598.0,0.7193677]
[1746348413960,0.11931,95599.0,95598.0,0.7193677]
[1746348414465,0.1485,95604.0,95603.0,0.209167]
[1746348414664,0.3785,95604.0,95603.0,0.729967]
[1746348415968,0.3795,95604.0,95603.0,0.733967]
[1746348416168,0.3805,95604.0,95603.0,0.736967]
[1746348417267,0.232,95604.0,95603.0,0.736967]
[1746348417465,0.002,95604.0,95603.0,0.889267]
[1746348417671,0.002,95604.0,95603.0,0.993867]
[1746348418571,0.002,95604.0,95603.0,0.889267]
[1746348418966,0.002,95604.0,95603.0,1.045167]
[1746348419667,0.002,95604.0,95603.0,1.10670427]
[1746348419870,0.07935137,95609.0,95604.0,0.0522907]
[1746348420165,0.03255137,95609.0,95608.0,0.2091561]
[1746348420370,0.10701439,95616.0,95615.0,0.2091408]
[1746348420371,0.03130439,95616.0,95615.0,0.2091408]
[1746348420570,0.03130439,95616.0,95615.0,0.7199408]
[1746348421161,0.03130439,95616.0,95615.0,1.0223408]
[1746348421775,0.3205,95619.0,95618.0,0.2091342]
[1746348421967,0.1679,95619.0,95618.0,0.3591342]
[1746348422768,0.01,95619.0,95618.0,0.3591342]
[1746348423073,0.1628,95624.0,95618.0,0.3591342]
[1746348423074,0.1628,95624.0,95623.0,0.2091233]
[1746348423271,0.0015,95640.0,95623.0,0.5108]
[1746348423472,0.29,95636.0,95635.0,0.209097]
[1746348423776,0.0015,95640.0,95639.0,0.2090883]
[1746348423970,0.0115,95640.0,95639.0,0.7198883]
[1746348424266,0.1272271,95648.0,95647.0,0.2090708]
[1746348424465,0.3072271,95648.0,95647.0,0.3090708]
[1746348424668,0.3072271,95648.0,95647.0,0.6698708]
[1746348424965,0.06672,95660.0,95647.0,0.6698708]
[1746348424966,0.2757635,95660.0,95659.0,0.2090446]
[1746348425173,0.4857635,95660.0,95659.0,0.2690446]
[1746348425371,0.4857635,95660.0,95659.0,0.06]
[1746348425561,0.27672,95660.0,95659.0,0.2690446]
[1746348425968,0.28272,95660.0,95659.0,0.2700446]
[1746348426164,0.28272,95660.0,95659.0,0.061]
[1746348426369,0.28572,95660.0,95659.0,0.062]
[1746348426571,0.28172,95660.0,95659.0,0.2710446]
[1746348427072,0.215,95660.0,95659.0,0.2710446]
[1746348427973,0.005,95660.0,95659.0,0.2710446]
[1746348428170,0.006,95660.0,95659.0,0.2700446]
[1746348429060,0.007,95660.0,95659.0,0.2700446]
[1746348429470,0.007,95660.0,95659.0,0.2900446]
[1746348431675,0.157,95660.0,95659.0,0.2900446]
[1746348433262,0.207,95660.0,95659.0,0.2700446]
[1746348433467,0.187,95660.0,95659.0,0.2700446]
[1746348433676,0.157,95660.0,95659.0,0.2700446]
[1746348436278,0.157,95660.0,95659.0,0.3000446]
[1746348436463,0.1491,95667.0,95659.0,0.3000446]
[1746348436464,0.1491,95667.0,95666.0,0.2090293]
[1746348436669,0.001,95676.0,95672.0,0.0522537]
[1746348436976,0.23761541,95676.0,95675.0,0.5698096]
[1746348437177,0.23761541,95676.0,95675.0,0.3590096]
[1746348437974,0.23761541,95676.0,95675.0,0.15]
[1746348437975,0.46761541,95676.0,95675.0,0.15]
[1746348438169,0.2090236,95669.0,95668.0,0.2090249]
[1746348438369,0.3380236,95669.0,95668.0,0.2290249]
[1746348439179,0.13,95669.0,95668.0,0.2290249]
[1746348439570,0.131,95669.0,95668.0,0.2290249]
[1746348440077,0.2897,95669.0,95668.0,0.2290249]
[1746348440671,0.4484,95669.0,95668.0,0.2290249]
[1746348441179,0.6574227,95669.0,95668.0,0.2290249]
[1746348441373,0.4484,95669.0,95668.0,0.2290249]
[1746348441879,0.4484,95669.0,95668.0,0.02]
[1746348442271,0.4484,95669.0,95668.0,0.2290249]
[1746348443179,0.6574227,95669.0,95668.0,0.2290249]
[1746348443571,0.6574227,95669.0,95668.0,0.02]
[1746348443876,0.7074227,95669.0,95668.0,0.02]
[1746348444077,0.6974227,95669.0,95668.0,0.02]
[1746348445881,0.1657,95669.0,95668.0,0.2290249]
[1746348446076,0.1957,95669.0,95668.0,0.2290249]
[1746348446281,0.02860801,95676.0,95668.0,0.2290249]
[1746348446282,0.001,95676.0,95675.0,0.2090096]
[1746348446484,0.001,95676.0,95675.0,0.7398096]
[1746348446778,0.09423396,95688.0,95687.0,0.2089834]
[1746348447080,0.21755396,95688.0,95687.0,0.3489834]
[1746348447671,0.21755396,95688.0,95687.0,0.6567834]
[1746348448280,0.02755396,95688.0,95687.0,0.6567834]
[1746348448476,0.008,95688.0,95687.0,0.6577834]
[1746348448878,0.014,95688.0,95687.0,0.6587834]
[1746348449986,0.014,95688.0,95687.0,0.6687834]
[1746348450580,0.014,95688.0,95687.0,2.1687834]
[1746348451181,0.1,95700.0,95699.0,0.2089572]
[1746348451376,0.1,95700.0,95699.0,0.3589572]
[1746348451780,0.4702569,95700.0,95699.0,0.3589572]
[1746348451981,0.2613,95700.0,95699.0,0.6650572]
[1746348452687,0.471255,95700.0,95699.0,0.6650572]
[1746348453978,0.471255,95700.0,95699.0,0.6660572]
[1746348454689,0.471255,95700.0,95699.0,0.66585911]
[1746348455689,0.2623,95700.0,95699.0,0.66585911]
[1746348455990,0.471255,95700.0,95699.0,0.66585911]
[1746348456189,0.501255,95700.0,95699.0,0.50795911]
[1746348456394,0.501255,95700.0,95699.0,0.35975911]
[1746348457282,0.501255,95700.0,95699.0,0.67725911]
[1746348457283,0.4519,95700.0,95699.0,0.67725911]
[1746348457489,0.2923,95700.0,95699.0,0.67725911]
[1746348458986,0.501255,95700.0,95699.0,0.67725911]
[1746348459695,0.2623,95700.0,95699.0,0.67725911]
[1746348459993,0.471255,95700.0,95699.0,0.68725911]
[1746348461989,0.2623,95700.0,95699.0,0.68725911]
[1746348462482,0.471255,95700.0,95699.0,0.67725911]
[1746348463895,0.2623,95700.0,95699.0,0.67725911]
[1746348464495,0.471255,95700.0,95699.0,0.67725911]
[1746348466300,0.2623,95700.0,95699.0,0.67725911]
[1746348466991,0.101,95700.0,95699.0,0.67725911]
[1746348467692,0.101,95700.0,95699.0,0.68725911]
[1746348468797,0.1619,95704.0,95703.0,0.2089485]
[1746348468999,0.1619,95704.0,95703.0,0.3389485]
[1746348469791,0.1619,95704.0,95703.0,0.4864485]
[1746348471002,0.1629,95704.0,95703.0,0.4864485]
[1746348471496,0.001,95704.0,95703.0,0.4864485]
[1746348471891,0.001,95704.0,95703.0,0.5064485]
[1746348479106,0.001,95704.0,95703.0,0.4864485]
[1746348479406,0.001,95704.0,95703.0,0.5164485]
[1746348481007,0.3026,95704.0,95703.0,0.5164485]
[1746348481703,0.3026,95704.0,95703.0,0.4864485]
[1746348481906,0.3826,95704.0,95703.0,0.3389485]
[1746348482102,0.3726,95704.0,95703.0,0.3389485]
[1746348482607,0.5815463,95704.0,95703.0,0.3389485]
[1746348484608,0.5815463,95704.0,95703.0,0.13]
[1746348485702,0.6860343,95704.0,95703.0,0.13]
[1746348486212,0.7160343,95704.0,95703.0,0.13]
[1746348486813,0.0522402,95698.0,95686.0,0.2089848]
[1746348487113,0.2089769,95690.0,95689.0,0.28958793]
[1746348487407,0.3789769,95690.0,95689.0,0.28958793]
[1746348487613,0.8442809,95690.0,95689.0,0.28958793]
[1746348488111,1.1472809,95690.0,95689.0,0.29158793]
[1746348489502,1.1472809,95690.0,95689.0,0.135]
[1746348489902,1.1472809,95690.0,95689.0,0.005]
[1746348490116,0.2089987,95680.0,95679.0,0.00156779]
[1746348490300,0.2989987,95680.0,95679.0,0.16156779]
[1746348490904,0.1543,95680.0,95679.0,0.52716869]
[1746348491113,0.1543,95680.0,95679.0,0.83476869]
[1746348492517,0.1543,95680.0,95679.0,0.83576869]
[1746348492716,0.2089909,95684.0,95679.0,0.67901759]
[1746348492919,0.3832909,95684.0,95679.0,0.67901759]
[1746348493120,0.3832909,95684.0,95683.0,0.2089878]
[1746348493417,0.38329,95684.0,95683.0,0.3289878]
[1746348493617,0.38329,95684.0,95683.0,0.6389878]
[1746348494308,0.38429,95684.0,95683.0,0.6389878]
[1746348496018,0.36429,95684.0,95683.0,0.6389878]
[1746348496218,0.37429,95684.0,95683.0,0.6389878]
[1746348496920,0.37429,95684.0,95683.0,0.31]
[1746348497818,0.37429,95684.0,95683.0,0.5189921]
[1746348499020,0.1653,95684.0,95683.0,0.6389921]
[1746348500220,0.001,95684.0,95683.0,0.6389921]
[1746348500422,0.011,95684.0,95683.0,0.6389921]
[1746348503635,0.001,95684.0,95683.0,0.6589921]
[1746348503926,0.021,95684.0,95683.0,0.6389921]
[1746348504117,0.001,95684.0,95683.0,0.6389921]
[1746348504825,0.001,95684.0,95683.0,0.6489921]
[1746348505626,0.001,95684.0,95683.0,2.1489921]
[1746348505925,0.2089801,95689.0,95688.0,0.2089812]
[1746348506122,0.2189801,95689.0,95688.0,0.3289812]
[1746348506623,0.01,95689.0,95688.0,0.6897812]
[1746348506823,0.01,95689.0,95688.0,0.9879812]
[1746348507022,0.208955,95703.0,95699.0,0.0522383]
[1746348507224,0.2089464,95704.0,95703.0,0.2611808]
[1746348507420,0.2089464,95704.0,95703.0,0.3389441]
[1746348508025,0.3582464,95704.0,95703.0,0.3389441]
[1746348508731,0.3622464,95704.0,95703.0,0.3389441]
[1746348509726,0.3662464,95704.0,95703.0,0.13]
[1746348510029,0.261217,95694.0,95693.0,0.2089638]
[1746348510225,0.321217,95694.0,95693.0,0.2089638]
[1746348510825,0.2089703,95693.0,95692.0,0.1502]
[1746348511025,0.7320703,95693.0,95692.0,0.3591725]
[1746348511623,0.208979,95689.0,95688.0,0.3608]
[1746348511829,0.268979,95689.0,95688.0,0.5008]
[1746348512024,0.06,95689.0,95685.0,0.1502]
[1746348512224,0.2089856,95686.0,95685.0,0.15]
[1746348512533,0.4189856,95686.0,95685.0,0.15]
[1746348512732,0.7221856,95686.0,95685.0,0.15]
[1746348513531,0.7231856,95686.0,95685.0,0.15]
[1746348523047,0.7131856,95686.0,95685.0,0.15]
[1746348536749,0.20899,95684.0,95683.0,0.1586]
[1746348536950,0.29899,95684.0,95683.0,0.1586]
[1746348537951,0.29899,95684.0,95683.0,0.1596]
[1746348542054,0.27899,95684.0,95683.0,0.1696]
[1746348542247,0.27899,95684.0,95683.0,0.1596]
[1746348542452,0.27899,95684.0,95683.0,0.3685921]
[1746348544157,0.06644,95688.0,95687.0,0.2089834]
[1746348544363,0.02,95688.0,95687.0,0.3289834]
[1746348544656,0.0522424,95694.0,95687.0,0.13]
[1746348544861,0.2089793,95692.0,95691.0,0.2089703]
[1746348545163,0.2089793,95692.0,95691.0,0.3289703]
[1746348546364,0.2099691,95694.0,95693.0,0.2089703]
[1746348546660,0.2299691,95694.0,95693.0,0.2089703]
[1746348547049,0.021,95694.0,95693.0,0.6997703]
[1746348547249,0.02,95694.0,95693.0,0.6997703]
[1746348547863,0.024,95694.0,95693.0,0.6997703]
[1746348548654,0.024,95694.0,95693.0,0.8534703]
[1746348548859,0.004,95694.0,95693.0,1.0079703]
[1746348550163,0.002,95694.0,95693.0,1.0089703]
[1746348550366,0.2089537,95701.0,95700.0,0.208955]
[1746348550565,0.2089537,95701.0,95700.0,0.338955]
[1746348551557,0.2109537,95701.0,95700.0,0.338955]
[1746348551757,0.2119537,95701.0,95700.0,0.338955]
[1746348552254,0.003,95701.0,95700.0,0.338955]
[1746348552659,0.003,95701.0,95700.0,0.463447]
[1746348553668,0.003,95701.0,95700.0,2.324247]
[1746348554061,0.003,95701.0,95700.0,2.219755]
[1746348555660,0.003,95701.0,95700.0,2.324247]
[1746348556173,0.003,95701.0,95700.0,2.199755]
[1746348558270,0.003,95701.0,95700.0,2.209755]
[1746348558972,0.003,95701.0,95700.0,1.848955]
[1746348559171,0.003,95701.0,95700.0,2.209755]
[1746348564563,0.053,95701.0,95700.0,2.199755]
[1746348564768,0.003,95701.0,95700.0,2.199755]
[1746348567770,0.003,95701.0,95700.0,2.354655]
[1746348568775,0.003,95701.0,95700.0,1.993855]
[1746348568982,0.003,95701.0,95700.0,2.504255]
[1746348569978,0.013,95701.0,95700.0,2.504255]
[1746348570173,0.003,95701.0,95700.0,2.504255]
[1746348572482,0.003,95701.0,95700.0,2.564255]
[1746348572779,0.003,95701.0,95700.0,2.504255]
[1746348573480,0.003,95701.0,95700.0,2.349355]
[1746348576286,0.003,95701.0,95700.0,2.1404]
[1746348576481,0.003,95701.0,95700.0,2.349355]
[1746348577479,0.003,95701.0,95700.0,0.4908]
[1746348577678,0.2089834,95687.0,95680.0,0.0015676]
[1746348577984,0.7297834,95687.0,95686.0,0.16574374]
[1746348578883,0.7819834,95687.0,95686.0,0.16774374]
[1746348579082,0.8214834,95687.0,95686.0,0.37325592]
[1746348580285,0.8197834,95687.0,95686.0,0.37425592]
[1746348580783,0.8214834,95687.0,95686.0,0.37425592]
[1746348581183,0.8197834,95687.0,95686.0,0.37425592]
[1746348581491,0.8214834,95687.0,95686.0,0.37425592]
[1746348581691,0.8197834,95687.0,95686.0,0.37425592]
[1746348581892,0.8214834,95687.0,95686.0,0.37425592]
[1746348582691,0.8861434,95687.0,95686.0,0.37425592]
[1746348582890,0.8878434,95687.0,95686.0,0.37425592]
[1746348583393,0.8878434,95687.0,95686.0,0.163]
[1746348583594,0.8861434,95687.0,95686.0,0.163]
[1746348583795,0.8878434,95687.0,95686.0,0.161]
[1746348583987,0.8898434,95687.0,95686.0,0.161]
[1746348584189,0.8918434,95687.0,95686.0,0.16]
[1746348586903,0.8901434,95687.0,95686.0,0.16]
[1746348587103,0.8918434,95687.0,95686.0,0.16]
[1746348593815,0.5310434,95687.0,95686.0,0.16]
[1746348594005,0.8918434,95687.0,95686.0,0.16]
[1746348595410,0.8254834,95687.0,95686.0,0.16]
[1746348595616,0.154,95687.0,95686.0,0.3689856]
[1746348595816,0.004,95687.0,95686.0,0.5389856]
[1746348596510,0.004,95687.0,95686.0,0.8591856]
[1746348596906,0.2129834,95687.0,95686.0,0.8591856]
[1746348597108,0.2129834,95687.0,95686.0,2.3591856]
[1746348598612,0.004,95687.0,95686.0,2.3591856]
[1746348599616,0.004,95687.0,95686.0,2.7199856]
[1746348600420,0.2611952,95702.0,95701.0,0.2611839]
[1746348600620,0.3011952,95702.0,95701.0,0.2611839]
[1746348601021,0.3011952,95702.0,95701.0,0.4011839]
[1746348601313,0.2489572,95702.0,95701.0,0.4011839]
[1746348601517,0.2539572,95702.0,95701.0,0.2611839]
[1746348602619,0.2579572,95702.0,95701.0,0.2611839]
[1746348607518,0.009,95702.0,95701.0,0.2711839]
[1746348609019,0.2179507,95702.0,95701.0,0.2711839]
[1746348610522,0.009,95702.0,95701.0,0.2711839]
[1746348611326,0.2179507,95702.0,95701.0,0.2711839]
[1746348614233,0.2129507,95702.0,95701.0,0.2711839]
[1746348614531,0.2129507,95702.0,95701.0,0.2721839]
[1746348615034,0.2089507,95702.0,95701.0,0.2721839]
[1746348619041,0.2089481,95704.0,95703.0,0.2089463]
[1746348619229,0.001,95706.0,95705.0,0.2089441]
[1746348619532,0.001,95706.0,95705.0,0.3689441]
[1746348621833,0.0015,95710.0,95709.0,0.2089354]
[1746348622036,0.0015,95710.0,95709.0,0.3589354]
[1746348622430,0.0015,95710.0,95709.0,1.8589354]
[1746348622932,0.0035,95710.0,95709.0,1.8589354]
[1746348623438,0.0045,95710.0,95709.0,1.8589354]
[1746348631548,0.0045,95710.0,95709.0,1.8989354]
[1746348639950,0.199,95710.0,95709.0,1.8589354]
[1746348640942,0.4079332,95710.0,95709.0,1.8589354]
[1746348641150,0.4079332,95710.0,95709.0,1.65]
[1746348641548,0.4079332,95710.0,95709.0,1.8589354]
[1746348642153,0.4079332,95710.0,95709.0,0.3589354]
[1746348642653,0.4079332,95710.0,95709.0,0.15]
[1746348644751,0.7887332,95710.0,95709.0,0.15]
[1746348645956,0.8682005,95710.0,95709.0,0.15]
[1746348647551,0.2089441,95705.0,95704.0,0.20598719]
[1746348647858,0.3089441,95705.0,95704.0,0.20598719]
[1746348648657,0.2089528,95702.0,95701.0,0.2089511]
[1746348648848,0.2889528,95702.0,95701.0,0.3389511]
[1746348649048,0.6077528,95702.0,95701.0,0.3389511]
[1746348650458,0.6077528,95702.0,95701.0,0.3399511]
[1746348651856,0.6077528,95702.0,95701.0,0.131]
[1746348653655,0.6077528,95702.0,95701.0,0.3399528]
[1746348656852,0.6077528,95702.0,95701.0,0.5014528]
[1746348658357,0.6077528,95702.0,95701.0,0.6598528]
[1746348670465,0.6077528,95702.0,95701.0,0.131]
[1746348670851,0.2089769,95690.0,95678.0,0.21125592]
[1746348671051,0.2089769,95690.0,95689.0,0.14156762]
[1746348671052,0.2989769,95690.0,95689.0,0.14156762]
[1746348671262,0.3089769,95690.0,95689.0,0.14156762]
[1746348671966,0.6350769,95690.0,95689.0,0.14156762]
[1746348672154,0.9958769,95690.0,95689.0,0.14]
[1746348672355,0.9948769,95690.0,95689.0,0.14]
[1746348672554,0.9968769,95690.0,95689.0,0.14]
[1746348674860,0.9868769,95690.0,95689.0,0.14]
[1746348675365,0.9968769,95690.0,95689.0,0.14]
[1746348676871,1.07630457,95690.0,95689.0,0.14]
[1746348679264,1.08630457,95690.0,95689.0,0.14]
[1746348680666,1.0068769,95690.0,95689.0,0.14]
[1746348693276,0.2089921,95683.0,95682.0,0.1495]
[1746348693477,0.4189921,95683.0,95682.0,0.2895]
[1746348694163,0.7279921,95683.0,95682.0,0.2895]
[1746348695569,0.5699921,95683.0,95682.0,0.14]
[1746348695777,0.8770921,95683.0,95682.0,0.14]
[1746348696576,0.9770921,95683.0,95682.0,0.14]
[1746348696777,0.9790921,95683.0,95682.0,0.14]
[1746348697478,0.2090162,95672.0,95671.0,0.12045895]
[1746348697678,0.7898162,95672.0,95671.0,0.22045895]
[1746348698270,0.9424162,95672.0,95671.0,0.22045895]
[1746348698674,0.9424162,95672.0,95671.0,0.1]
[1746348698880,1.0965162,95672.0,95671.0,0.1]
[1746348699682,1.0965162,95672.0,95671.0,0.0995]
[1746348700981,0.9439162,95672.0,95671.0,0.0995]
[1746348701669,0.7898162,95672.0,95671.0,0.0995]
[1746348701873,0.7698162,95672.0,95671.0,0.0995]
[1746348703081,0.2,95672.0,95671.0,0.6693184]
[1746348703284,0.07942767,95679.0,95671.0,0.6693184]
[1746348703285,0.07942767,95679.0,95678.0,0.2090031]
[1746348703585,0.31842857,95679.0,95678.0,0.3590031]
[1746348704474,0.31842857,95679.0,95678.0,0.8393031]
[1746348704780,0.31942857,95679.0,95678.0,0.8393031]
[1746348704986,0.2400009,95679.0,95678.0,0.8393031]
[1746348705589,0.2410009,95679.0,95678.0,0.8393031]
[1746348708585,0.032,95679.0,95678.0,0.8393031]
[1746348708785,0.002,95679.0,95678.0,0.8393031]
[1746348712382,0.002,95679.0,95678.0,1.2001031]
[1746348730798,0.2110009,95679.0,95678.0,0.9911]
[1746348731515,0.002,95679.0,95678.0,1.2001031]
[1746348732516,0.1535,95679.0,95678.0,0.8393031]
[1746348732703,0.1535,95679.0,95678.0,1.2001031]
[1746348733307,0.1535,95679.0,95678.0,0.8393031]
[1746348733612,0.1535,95679.0,95678.0,1.2001031]
[1746348736012,0.3625009,95679.0,95678.0,1.2001031]
[1746348736399,0.3625009,95679.0,95678.0,0.8833031]
[1746348739514,0.1535,95679.0,95678.0,0.8833031]
[1746348741019,0.1535,95679.0,95678.0,0.9033031]
[1746348741220,0.1535,95679.0,95678.0,0.8833031]
[1746348743121,0.1535,95679.0,95678.0,0.5225031]
[1746348743321,0.1535,95679.0,95678.0,0.8833031]
[1746348746821,0.1535,95679.0,95678.0,0.5225031]
[1746348747022,0.1535,95679.0,95678.0,0.8833031]
[1746348748120,0.1835,95679.0,95678.0,0.8833031]
[1746348748419,0.3925009,95679.0,95678.0,0.7198031]
[1746348749817,0.3925009,95679.0,95664.0,0.0673383]
[1746348749818,0.2090205,95670.0,95664.0,0.0673383]
[1746348750025,0.3090205,95670.0,95669.0,0.19960453]
[1746348750718,0.6345205,95670.0,95669.0,0.19960453]
[1746348751115,0.6345205,95670.0,95669.0,0.20060453]
[1746348751915,0.6610664,95670.0,95669.0,0.20060453]
[1746348753115,0.4255,95670.0,95669.0,0.40962723]
[1746348753317,0.2623,95670.0,95669.0,0.40962723]
[1746348753614,0.2623,95670.0,95669.0,0.2500227]
[1746348753923,0.1623,95670.0,95669.0,0.2500227]
[1746348754125,0.1623,95670.0,95669.0,0.5590227]
[1746348754328,0.1623,95670.0,95669.0,0.9198227]
[1746348756423,0.3713205,95670.0,95669.0,0.4018]
[1746348756722,0.3713205,95670.0,95669.0,0.6108227]
[1746348757319,0.6618205,95670.0,95669.0,0.4018]
[1746348757721,0.6618205,95670.0,95669.0,0.041]
[1746348758325,0.6718205,95670.0,95669.0,0.041]
[1746348758528,0.6618205,95670.0,95669.0,0.041]
[1746348759927,0.6718205,95670.0,95669.0,0.041]
[1746348760121,0.7898205,95670.0,95669.0,0.041]
[1746348763029,0.7898205,95670.0,95669.0,0.04]
[1746348763237,0.7918205,95670.0,95669.0,0.04]
[1746348763932,0.7938205,95670.0,95669.0,0.04]
[1746348765331,0.6758205,95670.0,95669.0,0.04]
[1746348765534,0.6858205,95670.0,95669.0,0.04]
[1746348765933,0.6758205,95670.0,95669.0,0.04]
[1746348771228,0.6658205,95670.0,95669.0,0.04]
[1746348772036,0.5153205,95670.0,95669.0,0.04]
[1746348772233,0.144,95670.0,95669.0,0.04]
[1746348772439,0.004,95670.0,95669.0,0.2490227]
[1746348772738,0.06572,95689.0,95669.0,0.735128]
[1746348773032,0.49561542,95689.0,95688.0,0.2089812]
[1746348773238,0.49561542,95689.0,95688.0,0.13]
[1746348773930,0.49961542,95689.0,95688.0,0.4406]
[1746348774440,0.50261542,95689.0,95688.0,0.4406]
[1746348775240,0.50061542,95689.0,95688.0,0.4406]
[1746348775537,0.50461542,95689.0,95688.0,0.4406]
[1746348779944,0.50461542,95689.0,95688.0,0.6495812]
[1746348786548,0.29563642,95689.0,95688.0,0.6495812]
[1746348786843,0.50461542,95689.0,95688.0,0.6495812]
[1746348788742,0.29563642,95689.0,95688.0,0.6495812]
[1746348789651,0.50461542,95689.0,95688.0,0.6495812]
[1746348791548,0.50461542,95689.0,95688.0,0.4406]